[Event "Titled Tuesday Blitz November 08 Early 2022"]
[White "Terry, Renato"]
[Black "Kaasen, Tor Fredrik"]
[WhiteFideId "3803457"]
[BlackFideId "1516647"]
[WhiteElo "2577"]
[BlackElo "2345"]
[Result "1-0"]
[Round "03"]
[TimeControl "180+1"]
[Date "2022.11.08"]
[WhiteClock "0:01:19"]
[BlackClock "0:00:01"]

1. e4 {[%clk 0:03:00]}  e5 {[%clk 0:02:58]} 2. Nf3 {[%clk 0:03:00]}  Nc6 {[%clk 0:02:59]} 3. c3 {[%clk 0:03:01]}  d5 {[%clk 0:02:51]} 4. Qa4 {[%clk 0:03:01]}  f6 {[%clk 0:02:17]} 5. d3 {[%clk 0:03:00]}  Be6 {[%clk 0:02:16]} 6. Nbd2 {[%clk 0:03:00]}  Qd7 {[%clk 0:02:17]} 7. Be2 {[%clk 0:02:58]}  Bc5 {[%clk 0:02:16]} 8. b4 {[%clk 0:02:54]}  Bb6 {[%clk 0:02:16]} 9. exd5 {[%clk 0:02:40]}  Bxd5 {[%clk 0:02:15]} 10. c4 {[%clk 0:02:41]}  Bxf3 {[%clk 0:01:59]} 11. Nxf3 {[%clk 0:02:42]}  Nd4 {[%clk 0:01:58]} 12. Qxd7+ {[%clk 0:02:40]}  Kxd7 {[%clk 0:01:57]} 13. c5 {[%clk 0:02:36]}  Nc2+ {[%clk 0:01:54]} 14. Kd2 {[%clk 0:02:36]}  Nxa1 {[%clk 0:01:53]} 15. Bb2 {[%clk 0:02:36]}  a5 {[%clk 0:01:37]} 16. cxb6 {[%clk 0:02:36]}  axb4 {[%clk 0:01:37]} 17. Rxa1 {[%clk 0:02:37]}  c5 {[%clk 0:01:36]} 18. a3 {[%clk 0:02:30]}  Ne7 {[%clk 0:01:35]} 19. axb4 {[%clk 0:02:18]}  Rxa1 {[%clk 0:01:26]} 20. Bxa1 {[%clk 0:02:19]}  Ra8 {[%clk 0:01:25]} 21. Bb2 {[%clk 0:02:08]}  cxb4 {[%clk 0:01:25]} 22. d4 {[%clk 0:02:08]}  e4 {[%clk 0:01:22]} 23. Bb5+ {[%clk 0:02:07]}  Kd6 {[%clk 0:01:20]} 24. Ne1 {[%clk 0:02:07]}  Nd5 {[%clk 0:01:16]} 25. Nc2 {[%clk 0:02:04]}  f5 {[%clk 0:01:06]} 26. Ne3 {[%clk 0:01:59]}  Nxb6 {[%clk 0:00:15]} 27. Nxf5+ {[%clk 0:01:58]}  Ke6 {[%clk 0:00:15]} 28. Ne3 {[%clk 0:01:50]}  Ra5 {[%clk 0:00:15]} 29. Be2 {[%clk 0:01:49]}  Na4 {[%clk 0:00:15]} 30. Kc2 {[%clk 0:01:46]}  Nxb2 {[%clk 0:00:11]} 31. Kxb2 {[%clk 0:01:47]}  Ra3 {[%clk 0:00:09]} 32. Bc4+ {[%clk 0:01:46]}  Ke7 {[%clk 0:00:09]} 33. Bb3 {[%clk 0:01:46]}  Ra5 {[%clk 0:00:08]} 34. h4 {[%clk 0:01:41]}  g5 {[%clk 0:00:07]} 35. h5 {[%clk 0:01:25]}  g4 {[%clk 0:00:06]} 36. h6 {[%clk 0:01:26]}  g3 {[%clk 0:00:04]} 37. fxg3 {[%clk 0:01:26]}  Rh5 {[%clk 0:00:05]} 38. Bc2 {[%clk 0:01:22]}  Kd8 {[%clk 0:00:02]} 39. Bxe4 {[%clk 0:01:22]}  Rxh6 {[%clk 0:00:03]} 40. Bxb7 {[%clk 0:01:18]}  Rg6 {[%clk 0:00:03]} 41. g4 {[%clk 0:01:17]}  Kc7 {[%clk 0:00:02]} 42. Bf3 {[%clk 0:01:16]}  Re6 {[%clk 0:00:03]} 43. Nd5+ {[%clk 0:01:16]}  Kd6 {[%clk 0:00:03]} 44. Nxb4 {[%clk 0:01:17]}  Re1 {[%clk 0:00:03]} 45. Kc3 {[%clk 0:01:17]}  Rc1+ {[%clk 0:00:03]} 46. Kd2 {[%clk 0:01:17]}  Ra1 {[%clk 0:00:04]} 47. Nd3 {[%clk 0:01:17]}  Ra2+ {[%clk 0:00:04]} 48. Ke3 {[%clk 0:01:18]}  Ra3 {[%clk 0:00:04]} 49. Ke4 {[%clk 0:01:18]}  h6 {[%clk 0:00:04]} 50. Ne5 {[%clk 0:01:19]}  Ra1 {[%clk 0:00:04]} 51. Nf7+ {[%clk 0:01:19]}  Ke7 {[%clk 0:00:05]} 52. Nxh6 {[%clk 0:01:19]}  Kf6 {[%clk 0:00:06]} 53. Nf5 {[%clk 0:01:19]}  Re1+ {[%clk 0:00:05]} 54. Ne3 {[%clk 0:01:20]}  Ra1 {[%clk 0:00:06]} 55. Kf4 {[%clk 0:01:20]}  Ra4 {[%clk 0:00:05]} 56. g5+ {[%clk 0:01:21]}  Ke6 {[%clk 0:00:05]} 57. Nf5 {[%clk 0:01:20]}  Ra5 {[%clk 0:00:05]} 58. d5+ {[%clk 0:01:21]}  Kf7 {[%clk 0:00:04]} 59. Bh5+ {[%clk 0:01:21]}  Kf8 {[%clk 0:00:04]} 60. d6 {[%clk 0:01:21]}  Ra4+ {[%clk 0:00:04]} 61. Ke5 {[%clk 0:01:22]}  Ra8 {[%clk 0:00:03]} 62. Ke6 {[%clk 0:01:19]}  Kg8 {[%clk 0:00:02]} 63. Bf7+ {[%clk 0:01:18]}  Kh7 {[%clk 0:00:02]} 64. g6+ {[%clk 0:01:18]}  Kh8 {[%clk 0:00:02]} 65. g7+ {[%clk 0:01:18]}  Kh7 {[%clk 0:00:03]} 66. g8=Q+ {[%clk 0:01:19]}  Rxg8 {[%clk 0:00:01]} 67. Bxg8+ {[%clk 0:01:19]} 1-0


[Site "https://www.chess.com"]

[Event "Titled Tuesday Blitz November 08 Early 2022"]
[White "Terzi, Alexei"]
[Black "Roux, Baptiste"]
[WhiteFideId "13505076"]
[BlackFideId "36017450"]
[WhiteElo "2172"]
[BlackElo "2077"]
[Result "1-0"]
[Round "03"]
[TimeControl "180+1"]
[Date "2022.11.09"]
[WhiteClock "0:00:32"]
[BlackClock "0:00:03"]

1. e4 {[%clk 0:03:00]}  e5 {[%clk 0:02:57]} 2. Nf3 {[%clk 0:03:00]}  Nc6 {[%clk 0:02:51]} 3. Bb5 {[%clk 0:02:56]}  g6 {[%clk 0:02:51]} 4. O-O {[%clk 0:02:50]}  Bg7 {[%clk 0:02:50]} 5. c3 {[%clk 0:02:49]}  Nge7 {[%clk 0:02:49]} 6. d4 {[%clk 0:02:46]}  O-O {[%clk 0:02:34]} 7. d5 {[%clk 0:02:38]}  Nb8 {[%clk 0:02:31]} 8. d6 {[%clk 0:02:37]}  cxd6 {[%clk 0:02:18]} 9. Qxd6 {[%clk 0:02:38]}  a6 {[%clk 0:02:11]} 10. Ba4 {[%clk 0:02:32]}  b5 {[%clk 0:02:04]} 11. Bb3 {[%clk 0:02:31]}  Bb7 {[%clk 0:02:04]} 12. Bg5 {[%clk 0:02:25]}  Nbc6 {[%clk 0:01:50]} 13. Rd1 {[%clk 0:02:12]}  h6 {[%clk 0:01:49]} 14. Bf6 {[%clk 0:02:04]}  Bxf6 {[%clk 0:01:19]} 15. Qxf6 {[%clk 0:02:05]}  Na5 {[%clk 0:01:07]} 16. Nxe5 {[%clk 0:01:49]}  Nxb3 {[%clk 0:01:03]} 17. axb3 {[%clk 0:01:50]}  d5 {[%clk 0:00:52]} 18. Ng4 {[%clk 0:01:31]}  Kh7 {[%clk 0:00:45]} 19. Ne3 {[%clk 0:01:17]}  Ng8 {[%clk 0:00:32]} 20. Qxd8 {[%clk 0:01:15]}  Rfxd8 {[%clk 0:00:28]} 21. exd5 {[%clk 0:01:16]}  Nf6 {[%clk 0:00:25]} 22. c4 {[%clk 0:01:16]}  Rac8 {[%clk 0:00:20]} 23. Nc3 {[%clk 0:01:15]}  bxc4 {[%clk 0:00:17]} 24. bxc4 {[%clk 0:01:16]}  Nd7 {[%clk 0:00:14]} 25. Na4 {[%clk 0:01:08]}  f5 {[%clk 0:00:13]} 26. f4 {[%clk 0:01:06]}  Re8 {[%clk 0:00:13]} 27. Kf2 {[%clk 0:01:05]}  Nf6 {[%clk 0:00:13]} 28. Nc3 {[%clk 0:01:02]}  Ne4+ {[%clk 0:00:13]} 29. Nxe4 {[%clk 0:01:00]}  Rxe4 {[%clk 0:00:14]} 30. g3 {[%clk 0:01:00]}  Rce8 {[%clk 0:00:13]} 31. Rd3 {[%clk 0:01:00]}  g5 {[%clk 0:00:12]} 32. Kf3 {[%clk 0:00:48]}  gxf4 {[%clk 0:00:12]} 33. gxf4 {[%clk 0:00:49]}  Bc8 {[%clk 0:00:11]} 34. c5 {[%clk 0:00:45]}  Rb4 {[%clk 0:00:07]} 35. c6 {[%clk 0:00:42]}  Rd8 {[%clk 0:00:05]} 36. d6 {[%clk 0:00:41]}  Rb6 {[%clk 0:00:06]} 37. d7 {[%clk 0:00:40]}  Bxd7 {[%clk 0:00:03]} 38. cxd7 {[%clk 0:00:39]}  Rb7 {[%clk 0:00:04]} 39. Rxa6 {[%clk 0:00:39]}  Rbxd7 {[%clk 0:00:04]} 40. Rxd7+ {[%clk 0:00:39]}  Rxd7 {[%clk 0:00:04]} 41. Nxf5 {[%clk 0:00:38]}  Rd3+ {[%clk 0:00:04]} 42. Ne3 {[%clk 0:00:38]}  Rd2 {[%clk 0:00:04]} 43. b4 {[%clk 0:00:36]}  Rxh2 {[%clk 0:00:03]} 44. b5 {[%clk 0:00:34]}  Rb2 {[%clk 0:00:04]} 45. b6 {[%clk 0:00:34]}  Rb4 {[%clk 0:00:02]} 46. Nd5 {[%clk 0:00:32]}  Kg6 {[%clk 0:00:03]} 47. Nxb4 {[%clk 0:00:32]} 1-0


[Site "https://www.chess.com"]

[Event "Titled Tuesday Blitz November 08 Early 2022"]
[White "Tleptsok, Ruslan"]
[Black "Galperin, Platon"]
[WhiteFideId "24104485"]
[BlackFideId "14165414"]
[WhiteElo "2130"]
[BlackElo "2435"]
[Result "1-0"]
[Round "03"]
[TimeControl "180+1"]
[Date "2022.11.09"]
[WhiteClock "0:01:30"]
[BlackClock "0:00:56"]

1. e4 {[%clk 0:03:00]}  g6 {[%clk 0:02:52]} 2. d4 {[%clk 0:02:59]}  d6 {[%clk 0:02:53]} 3. Nc3 {[%clk 0:02:58]}  Bg7 {[%clk 0:02:51]} 4. f4 {[%clk 0:02:59]}  Nf6 {[%clk 0:02:49]} 5. Nf3 {[%clk 0:02:59]}  O-O {[%clk 0:02:50]} 6. e5 {[%clk 0:02:59]}  dxe5 {[%clk 0:02:49]} 7. f5 {[%clk 0:02:59]}  e4 {[%clk 0:02:40]} 8. Ne5 {[%clk 0:02:54]}  Bxf5 {[%clk 0:02:38]} 9. Be3 {[%clk 0:02:50]}  Nbd7 {[%clk 0:02:34]} 10. Nxd7 {[%clk 0:02:49]}  Qxd7 {[%clk 0:02:33]} 11. Be2 {[%clk 0:02:47]}  c6 {[%clk 0:02:28]} 12. O-O {[%clk 0:02:47]}  Nd5 {[%clk 0:02:28]} 13. Nxd5 {[%clk 0:02:46]}  cxd5 {[%clk 0:02:26]} 14. c3 {[%clk 0:02:46]}  Rac8 {[%clk 0:02:25]} 15. Qe1 {[%clk 0:02:46]}  Bg4 {[%clk 0:02:20]} 16. Bxg4 {[%clk 0:02:33]}  Qxg4 {[%clk 0:02:21]} 17. Rf4 {[%clk 0:02:34]}  Qd7 {[%clk 0:02:19]} 18. Qh4 {[%clk 0:02:32]}  f5 {[%clk 0:02:11]} 19. Rf2 {[%clk 0:02:29]}  b6 {[%clk 0:02:07]} 20. Raf1 {[%clk 0:02:27]}  e5 {[%clk 0:02:06]} 21. dxe5 {[%clk 0:02:19]}  Bxe5 {[%clk 0:02:07]} 22. g4 {[%clk 0:02:10]}  d4 {[%clk 0:01:58]} 23. cxd4 {[%clk 0:01:51]}  Bxd4 {[%clk 0:01:58]} 24. Qg3 {[%clk 0:01:47]}  f4 {[%clk 0:01:20]} 25. Rxf4 {[%clk 0:01:45]}  Rxf4 {[%clk 0:01:15]} 26. Qxf4 {[%clk 0:01:42]}  Bxe3+ {[%clk 0:01:14]} 27. Qxe3 {[%clk 0:01:42]}  Qxg4+ {[%clk 0:01:13]} 28. Kh1 {[%clk 0:01:41]}  Rc2 {[%clk 0:01:11]} 29. Qb3+ {[%clk 0:01:38]}  Kg7 {[%clk 0:01:04]} 30. Qxc2 {[%clk 0:01:37]}  Qh4 {[%clk 0:01:00]} 31. Qf2 {[%clk 0:01:33]}  Qh3 {[%clk 0:00:56]} 32. Qf8# {[%clk 0:01:30]} 1-0


[Site "https://www.chess.com"]

[Event "Titled Tuesday Blitz November 08 Early 2022"]
[White "Tokhirjonova, Gulrukhbegim"]
[Black "Kovalenko, Igor"]
[WhiteFideId "14203626"]
[BlackFideId "14117908"]
[WhiteElo "2236"]
[BlackElo "2574"]
[Result "1/2-1/2"]
[Round "03"]
[TimeControl "180+1"]
[Date "2022.11.09"]
[WhiteClock "0:00:11"]
[BlackClock "0:00:59"]

1. e4 {[%clk 0:02:59]}  e6 {[%clk 0:02:59]} 2. d4 {[%clk 0:02:59]}  d5 {[%clk 0:02:59]} 3. Nd2 {[%clk 0:02:59]}  Nf6 {[%clk 0:02:59]} 4. e5 {[%clk 0:02:59]}  Nfd7 {[%clk 0:03:00]} 5. f4 {[%clk 0:02:59]}  c5 {[%clk 0:03:00]} 6. c3 {[%clk 0:02:59]}  b6 {[%clk 0:03:01]} 7. Ngf3 {[%clk 0:03:00]}  a5 {[%clk 0:03:01]} 8. a4 {[%clk 0:02:56]}  Be7 {[%clk 0:03:00]} 9. Bb5 {[%clk 0:02:56]}  Ba6 {[%clk 0:02:59]} 10. O-O {[%clk 0:02:56]}  Bxb5 {[%clk 0:03:00]} 11. axb5 {[%clk 0:02:56]}  g6 {[%clk 0:03:00]} 12. Kh1 {[%clk 0:02:51]}  h5 {[%clk 0:03:00]} 13. c4 {[%clk 0:02:51]}  dxc4 {[%clk 0:02:58]} 14. Nxc4 {[%clk 0:02:51]}  cxd4 {[%clk 0:02:59]} 15. Nxd4 {[%clk 0:02:51]}  Nc5 {[%clk 0:02:57]} 16. Be3 {[%clk 0:02:46]}  Ra7 {[%clk 0:02:55]} 17. b4 {[%clk 0:02:43]}  Rd7 {[%clk 0:02:46]} 18. bxa5 {[%clk 0:02:20]}  bxa5 {[%clk 0:02:44]} 19. Nxa5 {[%clk 0:02:18]}  O-O {[%clk 0:02:42]} 20. Nc4 {[%clk 0:01:48]}  Rd5 {[%clk 0:02:39]} 21. Ra8 {[%clk 0:01:42]}  Qc7 {[%clk 0:02:37]} 22. b6 {[%clk 0:01:39]}  Qc8 {[%clk 0:02:31]} 23. Qb1 {[%clk 0:01:26]}  Rfd8 {[%clk 0:02:29]} 24. Nb5 {[%clk 0:01:22]}  Nb7 {[%clk 0:02:27]} 25. Nc7 {[%clk 0:01:03]}  Rd3 {[%clk 0:02:11]} 26. Bg1 {[%clk 0:01:03]}  Qd7 {[%clk 0:02:09]} 27. Nd6 {[%clk 0:00:58]}  Rxd6 {[%clk 0:02:08]} 28. exd6 {[%clk 0:00:58]}  Bxd6 {[%clk 0:02:08]} 29. Rd1 {[%clk 0:00:58]}  Qc6 {[%clk 0:02:07]} 30. Qb5 {[%clk 0:00:38]}  Qc2 {[%clk 0:01:50]} 31. Qd3 {[%clk 0:00:33]}  Qc6 {[%clk 0:01:46]} 32. Qf3 {[%clk 0:00:29]}  Qxf3 {[%clk 0:01:37]} 33. gxf3 {[%clk 0:00:30]}  Kf8 {[%clk 0:01:35]} 34. Kg2 {[%clk 0:00:29]}  Ke7 {[%clk 0:01:34]} 35. Bf2 {[%clk 0:00:29]}  Kd7 {[%clk 0:01:31]} 36. Bh4 {[%clk 0:00:23]}  Rc8 {[%clk 0:01:31]} 37. Nb5 {[%clk 0:00:20]}  Rc2+ {[%clk 0:01:17]} 38. Kg3 {[%clk 0:00:20]}  Nc6 {[%clk 0:01:15]} 39. Nxd6 {[%clk 0:00:18]}  Nxd6 {[%clk 0:01:16]} 40. b7 {[%clk 0:00:18]}  Rb2 {[%clk 0:01:15]} 41. b8=Q {[%clk 0:00:12]}  Rxb8 {[%clk 0:01:15]} 42. Rxb8 {[%clk 0:00:12]}  Nxb8 {[%clk 0:01:16]} 43. Bf6 {[%clk 0:00:12]}  Kc6 {[%clk 0:01:16]} 44. Be5 {[%clk 0:00:11]}  Nf5+ {[%clk 0:01:16]} 45. Kf2 {[%clk 0:00:12]}  Nd7 {[%clk 0:01:16]} 46. Rc1+ {[%clk 0:00:12]}  Kb6 {[%clk 0:01:15]} 47. Rb1+ {[%clk 0:00:13]}  Kc6 {[%clk 0:01:15]} 48. Rd1 {[%clk 0:00:11]}  Nb6 {[%clk 0:01:05]} 49. Ra1 {[%clk 0:00:10]}  Nd5 {[%clk 0:01:04]} 50. Ra7 {[%clk 0:00:10]}  f6 {[%clk 0:01:05]} 51. Bb2 {[%clk 0:00:09]}  Nxf4 {[%clk 0:00:58]} 52. Bxf6 {[%clk 0:00:09]}  Nd3+ {[%clk 0:00:59]} 53. Ke2 {[%clk 0:00:09]}  Nf4+ {[%clk 0:00:59]} 54. Kf2 {[%clk 0:00:10]}  Nh3+ {[%clk 0:00:59]} 55. Kg2 {[%clk 0:00:10]}  Nf4+ {[%clk 0:00:59]} 56. Kf2 {[%clk 0:00:11]} 1/2-1/2


[Site "https://www.chess.com"]

[Event "Titled Tuesday Blitz November 08 Early 2022"]
[White "Trifan, Andrei Ioan"]
[Black "Bongo Akanga Ndjila, Barthelemy"]
[WhiteFideId "12967068"]
[BlackFideId "10609431"]
[WhiteElo "2208"]
[BlackElo "1768"]
[Result "1-0"]
[Round "03"]
[TimeControl "180+1"]
[Date "2022.11.09"]
[WhiteClock "0:01:32"]
[BlackClock "0:01:16"]

1. e4 {[%clk 0:03:00]}  c6 {[%clk 0:02:58]} 2. c4 {[%clk 0:02:56]}  d5 {[%clk 0:02:59]} 3. exd5 {[%clk 0:02:57]}  cxd5 {[%clk 0:02:59]} 4. cxd5 {[%clk 0:02:58]}  Nf6 {[%clk 0:02:59]} 5. Nc3 {[%clk 0:02:58]}  Nxd5 {[%clk 0:02:59]} 6. Nf3 {[%clk 0:02:59]}  Nc6 {[%clk 0:02:53]} 7. Bb5 {[%clk 0:02:59]}  e6 {[%clk 0:02:51]} 8. O-O {[%clk 0:02:56]}  Be7 {[%clk 0:02:42]} 9. d4 {[%clk 0:02:45]}  O-O {[%clk 0:02:41]} 10. Re1 {[%clk 0:02:45]}  Bf6 {[%clk 0:02:40]} 11. Bxc6 {[%clk 0:02:43]}  bxc6 {[%clk 0:02:39]} 12. Ne5 {[%clk 0:02:43]}  Qc7 {[%clk 0:02:25]} 13. Qh5 {[%clk 0:02:29]}  g6 {[%clk 0:02:23]} 14. Qh3 {[%clk 0:02:27]}  Bg7 {[%clk 0:02:19]} 15. Ne4 {[%clk 0:02:24]}  f6 {[%clk 0:02:09]} 16. Nd3 {[%clk 0:02:07]}  e5 {[%clk 0:02:07]} 17. Qg3 {[%clk 0:02:06]}  f5 {[%clk 0:02:01]} 18. Nc3 {[%clk 0:02:06]}  f4 {[%clk 0:01:59]} 19. Qf3 {[%clk 0:02:04]}  exd4 {[%clk 0:01:59]} 20. Nxd5 {[%clk 0:02:03]}  cxd5 {[%clk 0:01:51]} 21. Qxd5+ {[%clk 0:02:04]}  Kh8 {[%clk 0:01:46]} 22. Qxa8 {[%clk 0:02:01]}  Bb7 {[%clk 0:01:45]} 23. Qxa7 {[%clk 0:01:56]}  Qc6 {[%clk 0:01:45]} 24. f3 {[%clk 0:01:52]}  Ba6 {[%clk 0:01:39]} 25. Nb4 {[%clk 0:01:43]}  Qb5 {[%clk 0:01:24]} 26. Nxa6 {[%clk 0:01:39]}  Qa5 {[%clk 0:01:24]} 27. b4 {[%clk 0:01:38]}  Qb5 {[%clk 0:01:19]} 28. a4 {[%clk 0:01:34]}  Qc4 {[%clk 0:01:18]} 29. Bb2 {[%clk 0:01:33]}  Qb3 {[%clk 0:01:16]} 30. Bxd4 {[%clk 0:01:32]} 1-0


[Site "https://www.chess.com"]

[Event "Titled Tuesday Blitz November 08 Early 2022"]
[White "Troltenier, Dirk"]
[Black "Pajeken, Jakob Leon"]
[WhiteFideId "4606400"]
[BlackFideId "12942839"]
[WhiteElo "2317"]
[BlackElo "2429"]
[Result "0-1"]
[Round "03"]
[TimeControl "180+1"]
[Date "2022.11.09"]
[WhiteClock "0:00:38"]
[BlackClock "0:01:52"]

1. e4 {[%clk 0:03:00]}  e5 {[%clk 0:02:59]} 2. Nf3 {[%clk 0:03:00]}  Nc6 {[%clk 0:03:00]} 3. Bc4 {[%clk 0:03:00]}  Bc5 {[%clk 0:03:00]} 4. O-O {[%clk 0:02:57]}  Nf6 {[%clk 0:03:00]} 5. Nc3 {[%clk 0:02:57]}  a6 {[%clk 0:02:54]} 6. d3 {[%clk 0:02:57]}  d6 {[%clk 0:02:53]} 7. Bg5 {[%clk 0:02:52]}  h6 {[%clk 0:02:52]} 8. Be3 {[%clk 0:02:52]}  Bxe3 {[%clk 0:02:38]} 9. fxe3 {[%clk 0:02:53]}  Ne7 {[%clk 0:02:35]} 10. Qe1 {[%clk 0:02:50]}  Ng6 {[%clk 0:02:33]} 11. Nh4 {[%clk 0:02:49]}  Qe7 {[%clk 0:02:22]} 12. Nxg6 {[%clk 0:02:45]}  fxg6 {[%clk 0:02:23]} 13. Qg3 {[%clk 0:02:44]}  g5 {[%clk 0:02:23]} 14. Nd5 {[%clk 0:02:41]}  Nxd5 {[%clk 0:02:22]} 15. Bxd5 {[%clk 0:02:41]}  c6 {[%clk 0:02:18]} 16. Bf7+ {[%clk 0:02:38]}  Kd8 {[%clk 0:02:18]} 17. Bb3 {[%clk 0:02:37]}  Be6 {[%clk 0:02:18]} 18. Bxe6 {[%clk 0:02:22]}  Qxe6 {[%clk 0:02:18]} 19. Rf5 {[%clk 0:02:21]}  Ke7 {[%clk 0:02:17]} 20. Qf3 {[%clk 0:02:08]}  Raf8 {[%clk 0:02:16]} 21. Rxf8 {[%clk 0:02:05]}  Rxf8 {[%clk 0:02:15]} 22. Qe2 {[%clk 0:02:04]}  c5 {[%clk 0:02:11]} 23. b3 {[%clk 0:02:04]}  Rf6 {[%clk 0:02:07]} 24. a4 {[%clk 0:02:03]}  Qf7 {[%clk 0:02:04]} 25. Rf1 {[%clk 0:02:04]}  Rxf1+ {[%clk 0:02:02]} 26. Qxf1 {[%clk 0:02:05]}  Qxf1+ {[%clk 0:02:01]} 27. Kxf1 {[%clk 0:02:06]}  Kd7 {[%clk 0:02:01]} 28. Kf2 {[%clk 0:02:02]}  Kc6 {[%clk 0:02:02]} 29. g4 {[%clk 0:01:54]}  b5 {[%clk 0:02:00]} 30. axb5+ {[%clk 0:01:53]}  Kxb5 {[%clk 0:01:58]} 31. c3 {[%clk 0:01:50]}  a5 {[%clk 0:01:58]} 32. Ke2 {[%clk 0:01:00]}  a4 {[%clk 0:01:57]} 33. bxa4+ {[%clk 0:00:54]}  Kxa4 {[%clk 0:01:58]} 34. Kd1 {[%clk 0:00:49]}  Kb3 {[%clk 0:01:57]} 35. Kd2 {[%clk 0:00:49]}  Kb2 {[%clk 0:01:56]} 36. d4 {[%clk 0:00:47]}  c4 {[%clk 0:01:54]} 37. h3 {[%clk 0:00:45]}  g6 {[%clk 0:01:53]} 38. d5 {[%clk 0:00:38]}  Kb3 {[%clk 0:01:52]} 0-1


[Site "https://www.chess.com"]

[Event "Titled Tuesday Blitz November 08 Early 2022"]
[White "Urazayev, Arystanbek"]
[Black "Concio, Michael Jr."]
[WhiteFideId "13709810"]
[BlackFideId "5217873"]
[WhiteElo "2441"]
[BlackElo "2236"]
[Result "1-0"]
[Round "03"]
[TimeControl "180+1"]
[Date "2022.11.08"]
[WhiteClock "0:00:57"]
[BlackClock "0:00:01"]

1. d4 {[%clk 0:03:00]}  Nf6 {[%clk 0:02:59]} 2. c4 {[%clk 0:03:01]}  e6 {[%clk 0:02:59]} 3. Nf3 {[%clk 0:03:01]}  Bb4+ {[%clk 0:03:00]} 4. Nc3 {[%clk 0:03:01]}  d5 {[%clk 0:02:59]} 5. Qa4+ {[%clk 0:02:59]}  Nc6 {[%clk 0:02:59]} 6. a3 {[%clk 0:03:00]}  Be7 {[%clk 0:02:57]} 7. Bf4 {[%clk 0:02:55]}  O-O {[%clk 0:02:54]} 8. e3 {[%clk 0:02:54]}  a6 {[%clk 0:02:48]} 9. Qc2 {[%clk 0:02:54]}  h6 {[%clk 0:02:41]} 10. Rd1 {[%clk 0:02:52]}  Na5 {[%clk 0:02:19]} 11. c5 {[%clk 0:02:41]}  b6 {[%clk 0:02:07]} 12. Ne5 {[%clk 0:02:20]}  Bb7 {[%clk 0:01:54]} 13. b4 {[%clk 0:02:20]}  Nc6 {[%clk 0:01:49]} 14. Be2 {[%clk 0:02:13]}  b5 {[%clk 0:01:27]} 15. O-O {[%clk 0:02:11]}  Nxe5 {[%clk 0:01:25]} 16. dxe5 {[%clk 0:02:11]}  Ne8 {[%clk 0:01:02]} 17. e4 {[%clk 0:02:12]}  c6 {[%clk 0:01:01]} 18. exd5 {[%clk 0:02:12]}  exd5 {[%clk 0:01:01]} 19. Ne4 {[%clk 0:02:09]}  Bc8 {[%clk 0:01:01]} 20. Nd6 {[%clk 0:02:09]}  Nc7 {[%clk 0:00:56]} 21. Bg3 {[%clk 0:02:08]}  a5 {[%clk 0:00:53]} 22. f4 {[%clk 0:02:07]}  axb4 {[%clk 0:00:53]} 23. axb4 {[%clk 0:02:08]}  Ra4 {[%clk 0:00:54]} 24. f5 {[%clk 0:02:02]}  Bg5 {[%clk 0:00:54]} 25. Qc3 {[%clk 0:01:55]}  Na6 {[%clk 0:00:47]} 26. Rd4 {[%clk 0:01:34]}  Be7 {[%clk 0:00:29]} 27. Bh5 {[%clk 0:01:25]}  Bxd6 {[%clk 0:00:27]} 28. cxd6 {[%clk 0:01:24]}  Qg5 {[%clk 0:00:19]} 29. Bd1 {[%clk 0:01:22]}  c5 {[%clk 0:00:10]} 30. Rg4 {[%clk 0:01:20]}  cxb4 {[%clk 0:00:09]} 31. Qe1 {[%clk 0:01:05]}  Qc1 {[%clk 0:00:09]} 32. Bxa4 {[%clk 0:00:57]}  Qxe1 {[%clk 0:00:09]} 33. Bxe1 {[%clk 0:00:58]}  bxa4 {[%clk 0:00:09]} 34. Bxb4 {[%clk 0:00:58]}  Re8 {[%clk 0:00:05]} 35. e6 {[%clk 0:00:56]}  fxe6 {[%clk 0:00:05]} 36. f6 {[%clk 0:00:57]}  Rf8 {[%clk 0:00:02]} 37. Rxg7+ {[%clk 0:00:56]}  Kh8 {[%clk 0:00:02]} 38. Bc3 {[%clk 0:00:57]}  a3 {[%clk 0:00:01]} 39. f7 {[%clk 0:00:57]} 1-0


[Site "https://www.chess.com"]

[Event "Titled Tuesday Blitz November 08 Early 2022"]
[White "Vakhania, Alexandra"]
[Black "Kohler, Aran"]
[WhiteFideId "13602560"]
[BlackFideId "1002856"]
[WhiteElo "2053"]
[BlackElo "2362"]
[Result "1/2-1/2"]
[Round "03"]
[TimeControl "180+1"]
[Date "2022.11.09"]
[WhiteClock "0:00:11"]
[BlackClock "0:00:29"]

1. d4 {[%clk 0:03:00]}  Nf6 {[%clk 0:02:58]} 2. Nf3 {[%clk 0:02:59]}  d5 {[%clk 0:02:57]} 3. Bg5 {[%clk 0:02:50]}  Ne4 {[%clk 0:02:56]} 4. Bf4 {[%clk 0:02:49]}  Bf5 {[%clk 0:02:53]} 5. Nbd2 {[%clk 0:02:34]}  e6 {[%clk 0:02:52]} 6. e3 {[%clk 0:02:33]}  Bd6 {[%clk 0:02:51]} 7. Bd3 {[%clk 0:02:23]}  Nxd2 {[%clk 0:02:40]} 8. Qxd2 {[%clk 0:02:19]}  Bxd3 {[%clk 0:02:36]} 9. Qxd3 {[%clk 0:02:17]}  Bxf4 {[%clk 0:02:35]} 10. exf4 {[%clk 0:02:17]}  Nc6 {[%clk 0:02:28]} 11. c3 {[%clk 0:02:14]}  O-O {[%clk 0:02:26]} 12. O-O {[%clk 0:02:12]}  Qf6 {[%clk 0:02:22]} 13. g3 {[%clk 0:02:11]}  a6 {[%clk 0:02:22]} 14. Ne5 {[%clk 0:02:10]}  Nxe5 {[%clk 0:02:18]} 15. fxe5 {[%clk 0:02:08]}  Qe7 {[%clk 0:02:17]} 16. f4 {[%clk 0:02:07]}  c5 {[%clk 0:02:16]} 17. a3 {[%clk 0:01:58]}  Rac8 {[%clk 0:02:08]} 18. Rad1 {[%clk 0:01:56]}  cxd4 {[%clk 0:02:06]} 19. Qxd4 {[%clk 0:01:55]}  Rc4 {[%clk 0:02:05]} 20. Qf2 {[%clk 0:01:52]}  g6 {[%clk 0:02:04]} 21. Rd4 {[%clk 0:01:51]}  Rfc8 {[%clk 0:02:03]} 22. Rfd1 {[%clk 0:01:49]}  Qc5 {[%clk 0:01:54]} 23. Rxc4 {[%clk 0:01:47]}  Qxf2+ {[%clk 0:01:52]} 24. Kxf2 {[%clk 0:01:43]}  Rxc4 {[%clk 0:01:53]} 25. Rd4 {[%clk 0:01:41]}  Rxd4 {[%clk 0:01:50]} 26. cxd4 {[%clk 0:01:40]}  f6 {[%clk 0:01:27]} 27. Ke3 {[%clk 0:01:16]}  fxe5 {[%clk 0:01:25]} 28. fxe5 {[%clk 0:01:15]}  g5 {[%clk 0:01:18]} 29. g4 {[%clk 0:01:10]}  Kf7 {[%clk 0:01:17]} 30. Kd3 {[%clk 0:01:06]}  Ke7 {[%clk 0:01:15]} 31. Kc3 {[%clk 0:01:03]}  Kd7 {[%clk 0:01:15]} 32. Kb4 {[%clk 0:01:03]}  b6 {[%clk 0:01:11]} 33. a4 {[%clk 0:00:54]}  Kc6 {[%clk 0:01:11]} 34. a5 {[%clk 0:00:50]}  Kb7 {[%clk 0:00:54]} 35. axb6 {[%clk 0:00:47]}  Kxb6 {[%clk 0:00:55]} 36. Ka4 {[%clk 0:00:45]}  a5 {[%clk 0:00:37]} 37. b4 {[%clk 0:00:34]}  axb4 {[%clk 0:00:37]} 38. Kxb4 {[%clk 0:00:34]}  h6 {[%clk 0:00:30]} 39. h3 {[%clk 0:00:27]}  Kc6 {[%clk 0:00:29]} 40. Ka5 {[%clk 0:00:27]}  Kc7 {[%clk 0:00:28]} 41. Kb5 {[%clk 0:00:10]}  Kb7 {[%clk 0:00:28]} 42. Kc5 {[%clk 0:00:11]}  Kc7 {[%clk 0:00:28]} 43. Kb5 {[%clk 0:00:11]}  Kb7 {[%clk 0:00:28]} 44. Kc5 {[%clk 0:00:11]}  Kc7 {[%clk 0:00:29]} 45. Kb5 {[%clk 0:00:11]} 1/2-1/2


[Site "https://www.chess.com"]